bitfinex/quotes_BTCUSD_20250403
["timestamp","ask_amount","ask_price","bid_price","bid_amount"]
[1743687004873,0.272208,81911.0,81900.0,0.0003366]
[1743687005245,0.26,81911.0,81900.0,0.0003366]
[1743687005647,0.272208,81911.0,81900.0,0.0003366]
[1743687007103,0.26,81911.0,81900.0,0.0003366]
[1743687007295,0.272208,81911.0,81900.0,0.0003366]
[1743687007549,0.26,81911.0,81900.0,0.0003366]
[1743687007739,0.26,81911.0,81904.0,0.012209]
[1743687007957,0.26,81911.0,81910.0,0.1170922]
[1743687008497,0.26,81911.0,81910.0,0.0003366]
[1743687008675,0.272208,81911.0,81910.0,0.0003366]
[1743687009265,0.26,81911.0,81910.0,0.0003366]
[1743687010310,0.26,81911.0,81910.0,0.4693002]
[1743687010506,0.01856644,81969.0,81953.0,0.012202]
[1743687010708,0.244039,81954.0,81953.0,0.1167556]
[1743687010882,0.00013862,81936.0,81934.0,0.34]
[1743687011088,0.00013862,81936.0,81935.0,0.4567556]
[1743687011292,0.00013862,81936.0,81910.0,0.01254541]
[1743687011491,0.00013862,81936.0,81918.0,0.012207]
[1743687011492,0.244095,81935.0,81918.0,0.012207]
[1743687011688,0.244124,81926.0,81919.0,0.1289626]
[1743687011894,0.244138,81921.0,81919.0,0.1167556]
[1743687012262,0.01,81921.0,81919.0,0.3608976]
[1743687012452,0.01,81921.0,81920.0,0.012207]
[1743687012654,0.00013862,81936.0,81935.0,0.256299]
[1743687012842,0.00013862,81936.0,81935.0,0.4567556]
[1743687013175,0.00013862,81936.0,81935.0,0.7130546]
[1743687013606,0.00013862,81936.0,81935.0,0.72241723]
[1743687014473,0.00013862,81936.0,81935.0,0.76195808]
[1743687014735,0.00013862,81936.0,81935.0,0.76577081]
[1743687014929,0.00013862,81936.0,81935.0,0.74077081]
[1743687015134,0.00013862,81936.0,81935.0,0.75068311]
[1743687015393,0.00013862,81936.0,81935.0,0.49438411]
[1743687015558,0.00013862,81936.0,81935.0,0.50658811]
[1743687015959,0.00013862,81936.0,81935.0,0.49434377]
[1743687016364,0.00013862,81936.0,81935.0,0.48213496]
[1743687016503,0.00013862,81936.0,81935.0,0.49667581]
[1743687016702,0.00013862,81936.0,81935.0,0.48213496]
[1743687017741,0.00013862,81936.0,81935.0,0.12056833]
[1743687018128,0.02234262,81936.0,81935.0,0.00381273]
[1743687018823,0.01013862,81936.0,81935.0,0.12056833]
[1743687019225,0.02234262,81936.0,81935.0,0.00381273]
[1743687019450,0.02234262,81936.0,81927.0,0.00643591]
[1743687019451,0.256318,81929.0,81928.0,0.00381273]
[1743687019684,0.296318,81929.0,81928.0,0.00381273]
[1743687020479,0.04,81929.0,81928.0,0.12056833]
[1743687020678,0.04,81929.0,81928.0,0.00381273]
[1743687020679,0.296318,81929.0,81928.0,0.00381273]
[1743687021080,0.012205,81928.0,81927.0,0.0003366]
[1743687021341,0.052205,81928.0,81927.0,0.0003366]
[1743687021478,0.04,81928.0,81927.0,0.0003366]
[1743687022294,0.04,81928.0,81927.0,0.1170922]
[1743687023104,0.04,81928.0,81927.0,0.4570922]
[1743687023309,0.00013862,81936.0,81935.0,0.256299]
[1743687023600,0.00013862,81936.0,81927.0,0.0003366]
[1743687023601,0.012204,81934.0,81927.0,0.0003366]
[1743687023808,0.256321,81928.0,81927.0,0.0003366]
[1743687024038,0.316321,81928.0,81927.0,0.0003366]
[1743687025447,0.06,81928.0,81927.0,0.1292972]
[1743687025859,0.244081,81940.0,81933.0,0.012205]
[1743687026055,0.04013862,81936.0,81934.0,0.1167556]
[1743687026199,0.04013862,81936.0,81935.0,0.244095]
[1743687026401,0.00013862,81936.0,81935.0,0.7130546]
[1743687027014,0.00013862,81936.0,81935.0,0.72526341]
[1743687028000,0.00013862,81936.0,81935.0,0.73517867]
[1743687028202,0.0001683,81959.0,81949.0,0.012202]
[1743687028408,0.0201683,81959.0,81958.0,0.244027]
[1743687028589,0.0201683,81959.0,81958.0,0.5354636]
[1743687029247,0.0001683,81959.0,81958.0,0.5354636]
[1743687029502,0.0001683,81959.0,81958.0,0.88469211]
[1743687029741,0.0001683,81959.0,81958.0,0.91167472]
[1743687029956,0.0001683,81959.0,81958.0,0.94658998]
[1743687030242,0.0001683,81959.0,81958.0,0.95879879]
[1743687030644,0.004,81989.0,81987.0,0.24394]
[1743687030863,0.004,81989.0,81988.0,0.63383055]
[1743687031067,0.00446294,81989.0,81988.0,0.6313916]
[1743687031834,0.00446294,81989.0,81988.0,0.64593245]
[1743687032075,0.00446294,81989.0,81988.0,0.65497065]
[1743687032270,9.4e-07,81989.0,81988.0,0.65497065]
[1743687032480,4e-08,81999.0,81998.0,0.621103]
[1743687032626,0.10886768,82011.0,81998.0,0.621103]
[1743687032627,0.10886768,82011.0,82010.0,0.61060585]
[1743687032841,0.10886768,82011.0,82010.0,0.88976145]
[1743687033040,0.10900652,82011.0,82010.0,0.88976145]
[1743687033469,0.10900652,82011.0,82010.0,0.6313486]
[1743687034078,0.10900652,82011.0,82010.0,0.64588945]
[1743687034287,0.10900652,82011.0,82010.0,0.65517378]
[1743687034503,0.0001681,82030.0,82029.0,0.596006]
[1743687034694,0.0001681,82030.0,82029.0,0.7127616]
[1743687034895,0.0001681,82030.0,82029.0,0.73969898]
[1743687035101,0.000168,82040.0,82039.0,0.025]
[1743687035296,0.000168,82040.0,82039.0,0.91706853]
[1743687035496,0.00030669,82040.0,82039.0,0.91463145]
[1743687035706,0.243615,82097.0,82057.0,0.025]
[1743687035922,0.24362,82096.0,82078.0,0.595853]
[1743687036125,0.24362,82096.0,82078.0,0.80768966]
[1743687036126,0.00446249,82079.0,82078.0,0.80768966]
[1743687036297,0.00446249,82079.0,82078.0,0.79985261]
[1743687036298,0.00046249,82079.0,82078.0,0.79985261]
[1743687036669,0.243612,82098.0,82090.0,0.352181]
[1743687036844,0.00100069,82100.0,82093.0,0.255807]
[1743687037051,0.00030685,82094.0,82093.0,0.7125626]
[1743687037293,0.00030685,82094.0,82093.0,0.72710345]
[1743687037484,0.00030685,82094.0,82093.0,0.4567556]
[1743687037644,0.00030685,82094.0,82093.0,0.6312566]
[1743687037805,0.00030685,82094.0,82093.0,0.6190756]
[1743687038013,0.24382895,82094.0,82093.0,0.6190756]
[1743687038215,0.00020595,82094.0,82093.0,0.4689366]
[1743687038455,0.00020595,82094.0,82093.0,0.6311766]
[1743687038653,0.00020595,82094.0,82093.0,0.6312166]
[1743687039036,0.00020595,82094.0,82093.0,0.6312566]
[1743687039237,0.00020595,82094.0,82093.0,0.6312966]
[1743687040071,0.00020595,82094.0,82093.0,0.6191156]
[1743687040536,0.24382895,82094.0,82093.0,0.6191156]
[1743687040698,0.24382895,82094.0,82093.0,0.2791156]
[1743687040699,0.30600995,82094.0,82093.0,0.2791156]
[1743687040904,0.30600995,82094.0,82093.0,0.00012]
[1743687042333,0.255862,82075.0,82074.0,0.01601413]
[1743687042652,0.02,82075.0,82074.0,0.1289396]
[1743687042842,0.02,82075.0,82074.0,0.1167556]
[1743687043408,0.032183,82075.0,82074.0,0.1167556]
[1743687043839,0.255888,82067.0,82066.0,0.10849145]
[1743687044039,0.01,82067.0,82066.0,0.22524705]
[1743687044299,0.253703,82067.0,82066.0,0.22524705]
[1743687044741,0.253703,82067.0,82066.0,0.1167556]
[1743687044742,0.01,82067.0,82066.0,0.1167556]
[1743687045158,0.01013858,82067.0,82066.0,0.3604616]
[1743687045357,0.00013858,82067.0,82066.0,0.8748066]
[1743687046210,9.858e-05,82067.0,82066.0,0.8748466]
[1743687046529,9.858e-05,82067.0,82066.0,0.88938745]
[1743687046661,9.858e-05,82067.0,82066.0,0.88942745]
[1743687046857,9.858e-05,82067.0,82066.0,0.6190356]
[1743687047078,9.858e-05,82067.0,82066.0,0.8749266]
[1743687047279,9.858e-05,82067.0,82066.0,0.7128066]
[1743687047483,9.858e-05,82067.0,82066.0,0.8749266]
[1743687047680,9.858e-05,82067.0,82066.0,0.6190356]
[1743687047881,9.858e-05,82067.0,82066.0,0.64576145]
[1743687048289,0.243665,82080.0,82075.0,0.34]
[1743687048290,0.22548325,82080.0,82075.0,0.34]
[1743687048493,0.243638,82089.0,82077.0,0.34]
[1743687048708,0.02,82089.0,82083.0,0.255835]
[1743687048912,0.263639,82089.0,82084.0,0.3604056]
[1743687049191,0.263639,82089.0,82079.0,0.012183]
[1743687049192,0.2437,82068.0,82066.0,0.00070249]
[1743687049567,0.2537,82068.0,82067.0,0.1167556]
[1743687049895,0.265885,82068.0,82067.0,0.1167556]
[1743687050116,0.2537,82068.0,82067.0,0.1167556]
[1743687050316,0.01,82068.0,82067.0,0.3604586]
[1743687050500,0.243674,82077.0,82069.0,0.012184]
[1743687050704,0.243683,82074.0,82070.0,0.1167556]
[1743687051039,0.243689,82072.0,82070.0,0.1167556]
[1743687051233,0.255888,82067.0,82066.0,0.00070249]
[1743687051452,0.285888,82067.0,82066.0,0.00070249]
[1743687052703,0.285888,82067.0,82044.0,0.01462527]
[1743687052704,0.255972,82040.0,82039.0,0.00012]
[1743687052987,0.255972,82040.0,82026.0,0.10849145]
[1743687052988,0.243782,82027.0,82026.0,0.10849145]
[1743687053173,0.283782,82027.0,82026.0,0.22524705]
[1743687053424,0.052191,82027.0,82026.0,0.56538563]
[1743687053543,0.052191,82027.0,82026.0,0.22538563]
[1743687053778,0.052191,82027.0,82026.0,0.00013858]
[1743687055160,0.04,82027.0,82026.0,0.00017858]
[1743687055360,0.24382,82028.0,82026.0,0.11693418]
[1743687055582,0.243813,82031.0,82027.0,0.4567556]
[1743687055787,0.01,82031.0,82027.0,0.4567556]
[1743687056000,0.243814,82030.0,82027.0,0.4567556]
[1743687056219,0.243813,82030.0,82027.0,0.4567556]
[1743687056411,0.243798,82035.0,82029.0,0.34]
[1743687056666,0.243813,82031.0,82030.0,0.1167556]
[1743687056850,0.256003,82031.0,82030.0,0.1167556]
[1743687056988,0.253813,82031.0,82030.0,0.1167556]
[1743687057219,0.012188,82046.0,82033.0,0.243802]
[1743687057418,0.24378,82041.0,82034.0,0.1167556]
[1743687057636,0.243783,82040.0,82035.0,0.16208]
[1743687057834,0.253783,82040.0,82036.0,0.1167556]
[1743687058045,0.243791,82038.0,82036.0,0.1167556]
[1743687058256,0.01,82038.0,82036.0,0.1167556]
[1743687058468,0.02,82063.0,82055.0,0.012186]
[1743687058469,0.243716,82063.0,82055.0,0.012186]
[1743687058775,0.243722,82061.0,82056.0,0.2788356]
[1743687058969,0.012186,82057.0,82056.0,0.16208]
[1743687059085,0.042186,82057.0,82056.0,0.16208]
[1743687059299,0.03,82057.0,82056.0,0.16208]
[1743687059514,0.273733,82057.0,82056.0,0.16208]
[1743687059714,0.03,82057.0,82056.0,0.16221858]
[1743687059915,0.03,82057.0,82056.0,0.27897418]
[1743687060342,0.000168,82067.0,82066.0,0.012185]
[1743687060541,0.000168,82067.0,82066.0,0.3726466]
[1743687060957,0.000168,82067.0,82066.0,0.1167556]
[1743687061166,0.022353,82067.0,82066.0,0.01218678]
[1743687061384,0.022353,82067.0,82066.0,7.8e-07]
[1743687061598,0.022353,82067.0,82066.0,0.00381088]
[1743687061800,0.022353,82067.0,82056.0,0.00635]
[1743687061801,0.012186,82057.0,82056.0,0.00635]
[1743687061998,0.19,82057.0,82056.0,1e-06]
[1743687062317,0.202186,82057.0,82056.0,1e-06]
[1743687062547,0.012188,82045.0,82044.0,0.10849145]
[1743687062752,0.265956,82045.0,82044.0,0.10849145]
[1743687063100,0.01,82045.0,82044.0,0.10849145]
[1743687063792,0.022188,82045.0,82044.0,0.10849145]
[1743687064186,0.01,82045.0,82044.0,0.48120605]
[1743687064405,0.012182,82084.0,82044.0,0.82120605]
[1743687064606,0.012185,82066.0,82056.0,0.01454085]
[1743687064815,0.012187,82054.0,82044.0,0.10849145]
[1743687065016,0.012187,82054.0,82048.0,0.243758]
[1743687065017,0.253744,82054.0,82048.0,0.243758]
[1743687065170,0.24375,82052.0,82049.0,0.1167556]
[1743687065525,0.012185,82063.0,82049.0,0.1167556]
[1743687065729,0.243733,82057.0,82052.0,0.243746]
[1743687065934,0.243742,82054.0,82053.0,0.1167556]
[1743687066136,0.01249159,82067.0,82056.0,0.012186]
[1743687066345,0.012185,82064.0,82057.0,0.1167556]
[1743687066546,0.012185,82064.0,82045.0,0.405847]
[1743687066547,0.012186,82057.0,82045.0,0.405847]
[1743687066750,0.243761,82048.0,82046.0,0.1167556]
[1743687067190,0.000168,82057.0,82053.0,0.012187]
[1743687067407,0.000168,82057.0,82056.0,0.012186]
[1743687067408,0.010168,82057.0,82056.0,0.012186]
[1743687067630,0.000168,82057.0,82056.0,0.14348245]
[1743687067833,0.000168,82057.0,82056.0,0.29337645]
[1743687068032,0.000168,82057.0,82056.0,0.2910216]
[1743687068392,0.012188,82043.0,82033.0,0.00012]
[1743687068594,0.243759,82048.0,82035.0,0.012189]
[1743687068796,0.243775,82043.0,82038.0,0.243787]
[1743687068997,0.243781,82041.0,82039.0,0.2788356]
[1743687069197,0.012189,82040.0,82039.0,0.16208]
[1743687069622,0.243795,82036.0,82035.0,0.16208]
[1743687069824,0.253795,82036.0,82035.0,0.1167556]
[1743687069977,0.253795,82036.0,82035.0,0.2788356]
[1743687070201,0.253795,82036.0,82035.0,0.1167556]
[1743687070202,0.01,82036.0,82035.0,0.1167556]
[1743687070415,0.265984,82036.0,82035.0,0.1167556]
[1743687070663,0.01,82036.0,82035.0,0.1289446]
[1743687070874,0.012186,82058.0,82046.0,0.012188]
[1743687071161,0.16208,82084.0,82046.0,0.012188]
[1743687071162,0.005,82102.0,82056.0,0.352186]
[1743687071366,1.0526,82105.0,82056.0,0.48348245]
[1743687071367,0.243638,82089.0,82056.0,0.48348245]
[1743687071569,0.012179,82103.0,82066.0,0.595891]
[1743687071774,0.243599,82103.0,82066.0,1.31765545]
[1743687071995,0.004,82109.0,82093.0,0.255807]
[1743687072202,0.004,82109.0,82093.0,0.8780026]
[1743687072411,0.0005295,82094.0,82093.0,0.89254345]
[1743687072633,0.0005295,82094.0,82093.0,0.6221956]
[1743687073045,0.0005295,82094.0,82093.0,0.8780026]
[1743687073252,0.0005295,82094.0,82093.0,0.9047235]
[1743687073458,0.3653989,82140.0,82112.0,0.012178]
[1743687073660,0.24021865,82127.0,82116.0,0.012177]
[1743687073869,0.24021865,82127.0,82123.0,0.012176]
[1743687074078,0.243528,82126.0,82124.0,0.1167556]
[1743687074286,0.393528,82126.0,82124.0,0.1167556]
[1743687074489,0.15,82126.0,82124.0,0.1167556]
[1743687074696,0.15,82126.0,82125.0,0.012176]
[1743687074899,0.00021865,82127.0,82126.0,0.352176]
[1743687075106,0.00021865,82127.0,82126.0,0.4689316]
[1743687075311,6.5e-07,82127.0,82126.0,1.10655245]
[1743687075526,6.5e-07,82127.0,82126.0,0.48347245]
[1743687075701,0.004,82139.0,82138.0,0.595666]
[1743687075900,0.004,82139.0,82138.0,0.72696245]
[1743687076505,0.0001679,82140.0,82138.0,0.72696245]
[1743687076506,9e-07,82140.0,82139.0,0.39671485]
[1743687076704,0.004,82169.0,82166.0,0.01217]
[1743687077034,0.243403,82168.0,82167.0,0.2965956]
[1743687077231,0.04,82168.0,82167.0,0.2965956]
[1743687077428,0.04,82168.0,82167.0,0.17984]
[1743687077606,0.04,82168.0,82167.0,0.2965956]
[1743687077834,0.03,82168.0,82167.0,0.2965956]
[1743687078361,0.03,82168.0,82167.0,0.92109998]
[1743687078711,0.00403772,82169.0,82168.0,0.36671085]
[1743687078909,0.0001679,82210.0,82198.0,0.595479]
[1743687079101,0.0001679,82210.0,82198.0,0.7122346]
[1743687079221,0.00446174,82199.0,82198.0,0.65497645]
[1743687079422,0.02446174,82199.0,82198.0,0.1167556]
[1743687079626,0.243367,82181.0,82180.0,0.1167556]
[1743687080098,0.243377,82177.0,82176.0,0.18476]
[1743687080266,0.01,82177.0,82176.0,0.1167556]
[1743687080464,0.012171,82161.0,82160.0,0.18484]
[1743687080668,0.012171,82161.0,82160.0,0.1167556]
[1743687080866,0.243468,82146.0,82145.0,0.18608]
[1743687081073,0.012172,82155.0,82145.0,0.18608]
[1743687081074,0.243454,82151.0,82145.0,0.1167556]
[1743687081275,0.243454,82151.0,82129.0,0.6843]
[1743687081276,0.025,82120.0,82111.0,0.004]
[1743687081474,0.025,82134.0,82124.0,0.012176]
[1743687081695,0.025,82126.0,82125.0,0.11919092]
[1743687081899,0.01,82126.0,82125.0,0.1167556]
[1743687082157,0.187,82165.0,82148.0,0.243462]
[1743687082333,0.187,82165.0,82121.0,0.00243511]
[1743687082334,0.025,82138.0,82132.0,0.012175]
[1743687082533,0.34,82164.0,82131.0,0.012175]
[1743687082534,0.025,82134.0,82133.0,0.1289306]
[1743687082755,0.012171,82156.0,82140.0,0.012174]
[1743687082756,0.025,82141.0,82140.0,0.012174]
[1743687082948,0.035,82141.0,82140.0,0.3724156]
[1743687083148,0.01217,82168.0,82149.0,0.012173]
[1743687083348,0.025,82151.0,82150.0,0.1167556]
[1743687083583,0.025,82151.0,82149.0,0.0123116]
[1743687083584,0.025,82150.0,82149.0,0.0123116]
[1743687083790,0.025,82156.0,82155.0,0.255611]
[1743687084000,1.05164,82173.0,82170.0,0.243397]
[1743687084241,0.025,82167.0,82159.0,0.012171]
[1743687084445,0.025,82167.0,82146.0,0.34]
[1743687084446,0.025,82150.0,82146.0,0.34]
[1743687084649,0.035,82150.0,82146.0,0.012173]
[1743687084824,0.035,82150.0,82144.0,0.255646]
[1743687085054,0.035,82150.0,82148.0,0.012173]
[1743687085299,0.025,82150.0,82149.0,0.1290672]
[1743687085501,0.012167,82187.0,82175.0,0.012169]
[1743687085719,0.025,82163.0,82159.0,0.012171]
[1743687085948,0.025,82163.0,82150.0,0.34]
[1743687085949,0.025,82143.0,82142.0,0.255654]
[1743687086141,0.42829954,82180.0,82142.0,0.255654]
[1743687086142,0.025,82145.0,82144.0,0.255644]
[1743687086351,0.025,82145.0,82144.0,0.3723996]
[1743687086995,0.025,82151.0,82150.0,0.255629]
[1743687087205,0.0479,82162.0,82160.0,0.243426]
[1743687087402,0.0479,82162.0,82158.0,0.012171]
[1743687087403,0.025,82159.0,82158.0,0.012171]
[1743687087604,0.025,82156.0,82155.0,0.012172]
[1743687088024,0.0479,82162.0,82155.0,0.012172]
[1743687088025,0.0479,82162.0,82160.0,0.243427]
[1743687088227,0.0479,82179.0,82175.0,0.012169]
[1743687088343,0.0479,82179.0,82178.0,0.255542]
[1743687088705,0.004,82199.0,82167.0,0.34]
[1743687088706,0.025,82172.0,82167.0,0.34]
[1743687088916,0.025,82171.0,82168.0,0.1167556]
[1743687089123,0.025,82165.0,82159.0,0.34]
[1743687089323,0.025,82165.0,82164.0,0.01217]
[1743687089524,0.025,82173.0,82171.0,0.255563]
[1743687089736,0.025,82171.0,82170.0,0.255564]
[1743687089905,0.025,82171.0,82170.0,0.1167556]
[1743687090111,0.025,82171.0,82161.0,0.255594]
[1743687090112,0.025,82164.0,82151.0,0.352172]
[1743687090313,0.268427,82160.0,82150.0,0.18688]
[1743687090584,0.081,82160.0,82155.0,0.012172]
[1743687090869,0.081,82160.0,82156.0,0.243437]
[1743687091067,0.081,82160.0,82155.0,0.012172]
[1743687091068,0.081,82160.0,82158.0,0.012171]
[1743687091268,0.324427,82160.0,82126.0,0.01487645]
[1743687091468,0.336598,82160.0,82144.0,0.243474]
[1743687091697,0.081,82160.0,82151.0,0.255624]
[1743687091897,0.081,82160.0,82149.0,0.012173]
[1743687092092,0.093171,82160.0,82146.0,0.243468]
[1743687092309,0.093171,82160.0,82110.0,0.43232235]
[1743687092310,0.1977556,82160.0,82114.0,0.10772004]
[1743687092478,0.025,82129.0,82127.0,0.1167556]
[1743687092993,0.025,82127.0,82126.0,0.0003356]
[1743687093193,0.047176,82127.0,82126.0,0.0003356]
[1743687093394,0.035,82127.0,82126.0,0.0003356]
[1743687093600,0.096876,82127.0,82126.0,0.0003356]
[1743687094601,0.0597,82127.0,82126.0,0.0003356]
[1743687094803,0.0847,82127.0,82126.0,0.1170912]
[1743687095123,0.01,82127.0,82126.0,0.1292672]
[1743687095353,0.025,82127.0,82126.0,0.1292672]
[1743687095504,0.025,82127.0,82126.0,0.3727922]
[1743687095683,0.025,82132.0,82130.0,0.243513]
[1743687095888,0.0457,82153.0,82143.0,0.012173]
[1743687096083,0.00013842,82152.0,82146.0,0.012173]
[1743687096308,0.025,82147.0,82146.0,0.1289286]
[1743687096530,0.01,82147.0,82146.0,0.1289286]
[1743687096737,0.025,82147.0,82146.0,0.1167556]
[1743687097142,0.025,82147.0,82146.0,0.1289286]
[1743687097536,0.00013842,82152.0,82151.0,0.255626]
[1743687097741,0.00013842,82152.0,82151.0,0.3723816]
[1743687097923,0.00013842,82152.0,82151.0,0.7123816]
[1743687098363,0.00013842,82152.0,82151.0,0.72692245]
[1743687098516,0.01013842,82152.0,82151.0,0.72692245]
[1743687098730,0.01013842,82152.0,82151.0,0.73072483]
[1743687099692,0.00013842,82152.0,82151.0,0.73072483]
[1743687099895,4.2e-07,82152.0,82151.0,1.03678083]
[1743687100188,4.2e-07,82152.0,82151.0,0.73072483]
[1743687100402,0.025,82190.0,82189.0,0.012167]
[1743687100602,0.0452,82205.0,82198.0,0.255479]
[1743687100817,0.044,82199.0,82198.0,0.3722346]
[1743687101016,0.04446203,82199.0,82198.0,0.7122346]
[1743687101232,0.04446203,82199.0,82198.0,0.4567556]
[1743687101419,0.06946203,82199.0,82198.0,0.1167556]
[1743687101621,0.04446203,82199.0,82198.0,0.3025956]
[1743687101851,0.04446203,82199.0,82198.0,0.66464399]
[1743687102045,0.04446203,82199.0,82198.0,0.67918484]
[1743687102168,0.04446203,82199.0,82198.0,0.49334484]
[1743687102368,0.04446203,82199.0,82198.0,0.67898484]
[1743687102681,0.00446203,82199.0,82198.0,0.67898484]
[1743687103015,0.00446203,82199.0,82198.0,0.67902484]
[1743687103417,0.00446203,82199.0,82198.0,0.49338484]
[1743687103618,0.025,82215.0,82209.0,0.352164]
[1743687103821,0.01030642,82210.0,82209.0,0.1167556]
[1743687104184,0.03530642,82210.0,82209.0,0.1167556]
[1743687104390,0.03530642,82210.0,82209.0,0.32858045]
[1743687104534,0.01030642,82210.0,82209.0,0.66858045]
[1743687105129,0.01030642,82210.0,82209.0,0.66834045]
[1743687105522,0.01030642,82210.0,82209.0,0.67214283]
[1743687105927,0.01030642,82210.0,82209.0,0.65732198]
[1743687106128,0.01030642,82210.0,82209.0,0.64515798]
[1743687106368,0.03530642,82210.0,82209.0,0.18844238]
[1743687106825,0.03530642,82210.0,82209.0,0.18464]
[1743687107029,0.03530642,82210.0,82209.0,8e-05]
[1743687107478,0.03530642,82210.0,82209.0,0.3722816]
[1743687107678,0.03530642,82210.0,82209.0,8e-05]
[1743687107992,0.03530642,82210.0,82209.0,0.012244]
[1743687108200,0.01030642,82210.0,82209.0,0.012244]
[1743687108399,0.03530642,82210.0,82209.0,0.012244]
[1743687108596,0.01030642,82210.0,82209.0,0.012244]
[1743687108803,0.02530642,82210.0,82209.0,0.1289996]
[1743687109002,0.00030642,82210.0,82209.0,0.13143225]
[1743687109229,0.184,82257.0,82209.0,0.13143225]
[1743687109230,1e-06,82238.0,82228.0,0.255387]
[1743687109474,0.0002,82257.0,82225.0,0.012161]
[1743687109475,0.0252,82257.0,82256.0,0.2553]
[1743687109621,0.025,82247.0,82241.0,0.012159]
[1743687109825,0.025,82244.0,82243.0,0.25534]
[1743687110053,0.025,82247.0,82246.0,0.25533]
[1743687110378,0.00033847,82257.0,82252.0,0.012157]
[1743687110379,0.025,82253.0,82252.0,0.012157]
[1743687110600,0.02,82253.0,82252.0,0.3720646]
[1743687110934,0.02,82256.0,82255.0,0.255303]
[1743687111139,0.02,82256.0,82251.0,0.34]
[1743687111424,0.02,82252.0,82251.0,0.1167556]
[1743687111839,0.02,82252.0,82211.0,0.6843]
[1743687111840,0.02,82243.0,82211.0,0.6843]
[1743687112040,0.01996,82240.0,82239.0,0.255351]
[1743687112244,0.01,82243.0,82236.0,0.01216]
[1743687112245,0.01996,82238.0,82236.0,0.34]
[1743687114739,0.00033847,82257.0,82256.0,0.72659645]
[1743687114944,0.004,82289.0,82288.0,0.012152]
[1743687115116,1e-06,82289.0,82288.0,0.91280619]
[1743687115316,0.00046229,82289.0,82288.0,0.91037645]
[1743687115518,0.00046229,82289.0,82288.0,0.4567556]
[1743687115757,0.012149,82307.0,82288.0,0.4567556]
[1743687115758,0.0491,82314.0,82302.0,0.01215]
[1743687115955,0.0491,82314.0,82288.0,0.3005556]
[1743687115956,0.012149,82308.0,82290.0,0.012152]
[1743687116323,0.00013838,82314.0,82313.0,0.255122]
[1743687116525,0.01013838,82314.0,82313.0,0.1167556]
[1743687117562,0.01013838,82314.0,82313.0,0.18352]
[1743687117768,0.00013838,82314.0,82313.0,0.6524236]
[1743687117978,0.00013838,82314.0,82313.0,0.6524636]
[1743687118389,3.8e-07,82319.0,82318.0,0.595108]
[1743687118596,0.004,82349.0,82318.0,0.595108]
[1743687118597,9.8e-07,82331.0,82330.0,0.60961085]
[1743687118798,9.8e-07,82331.0,82330.0,0.72636645]
[1743687119002,9.8e-07,82331.0,82330.0,0.90992645]
[1743687119411,9.8e-07,82331.0,82330.0,0.1167556]
[1743687119618,9.8e-07,82331.0,82300.0,0.42329954]
[1743687119619,0.012146,82329.0,82320.0,0.18348]
[1743687119829,9.8e-07,82331.0,82322.0,0.012147]
[1743687120039,0.03000098,82331.0,82328.0,0.012146]
[1743687120247,0.03000098,82331.0,82330.0,0.012146]
[1743687120451,0.03000098,82331.0,82323.0,0.43849]
[1743687120691,0.03000098,82331.0,82321.0,0.24295]
[1743687120692,0.03000098,82331.0,82325.0,0.18348]
[1743687120905,0.03000098,82331.0,82318.0,0.012148]
[1743687120906,0.012146,82325.0,82288.0,4e-05]
[1743687121119,0.012148,82314.0,82288.0,4e-05]
[1743687121328,0.2289036,82314.0,82295.0,0.012151]
[1743687121539,0.112148,82314.0,82293.0,0.18388]
[1743687121753,0.112148,82314.0,82261.0,0.004]
[1743687121754,0.255197,82289.0,82261.0,0.004]
[1743687122009,0.481397,82289.0,82265.0,0.18388]
[1743687122219,0.481397,82289.0,82261.0,0.004]
[1743687122220,0.243113,82267.0,82261.0,0.004]
[1743687122425,0.03,82267.0,82262.0,0.1167556]
[1743687122637,0.03,82267.0,82266.0,0.255268]
[1743687122844,0.243099,82271.0,82266.0,0.1167556]
[1743687123053,0.243104,82270.0,82261.0,0.004]
[1743687123262,0.243104,82270.0,82262.0,0.255279]
[1743687123263,0.01,82270.0,82262.0,0.255279]
[1743687123467,0.243054,82287.0,82273.0,0.012154]
[1743687123675,0.243054,82287.0,82279.0,0.243074]
[1743687123676,0.08,82287.0,82279.0,0.243074]
[1743687123925,0.08,82287.0,82283.0,0.255216]
[1743687124131,0.08,82287.0,82276.0,0.012154]
[1743687124132,0.012153,82279.0,82268.0,0.18396]
[1743687124347,0.05,82279.0,82277.0,0.243079]
[1743687124563,0.05,82279.0,82266.0,0.012155]
[1743687124564,0.243058,82285.0,82278.0,0.1167556]
[1743687124763,0.243058,82285.0,82244.0,0.025]
[1743687124764,0.03,82285.0,82272.0,0.012154]
[1743687124966,0.00013815,82289.0,82281.0,0.012153]
[1743687125179,0.012152,82288.0,82276.0,0.18452]
[1743687125379,0.05,82288.0,82276.0,0.1167556]
[1743687125583,0.293051,82288.0,82271.0,0.18464]
[1743687125788,0.293051,82288.0,82243.0,4e-05]
[1743687125789,0.243125,82263.0,82245.0,0.012158]
[1743687126008,0.243125,82263.0,82243.0,4e-05]
[1743687126009,0.012156,82262.0,82243.0,4e-05]
[1743687126213,0.12,82262.0,82250.0,0.012158]
[1743687126425,0.12,82262.0,82243.0,4e-05]
[1743687126426,0.0485,82293.0,82274.0,0.012154]
[1743687126626,0.0485,82293.0,82277.0,0.012154]
[1743687126627,0.24305,82288.0,82277.0,0.012154]
[1743687126910,0.04,82288.0,82278.0,0.1167556]
[1743687127119,0.04,82288.0,82268.0,0.012155]
[1743687127120,0.243084,82276.0,82274.0,0.00046129]
[1743687127319,0.012154,82275.0,82274.0,0.00046129]
[1743687127535,0.2689096,82275.0,82274.0,0.00046129]
[1743687127753,0.2689096,82275.0,82261.0,0.00404]
[1743687127754,0.14,82275.0,82261.0,0.00404]
[1743687127927,0.14,82275.0,82262.0,0.3720366]
[1743687128133,0.14,82275.0,82274.0,0.24309]
[1743687128375,0.14,82275.0,82274.0,0.1167556]